bitfinex-derivatives/quotes_ETHF0:USTF0_20250831
["timestamp","ask_amount","ask_price","bid_price","bid_amount"]
[1756616925911,0.4987,4460.4,4460.3,0.1862]
[1756616926111,0.4987,4460.4,4460.3,0.4122]
[1756616926511,0.4987,4460.4,4460.3,0.226]
[1756616927917,0.199,4459.9,4459.8,0.4835]
[1756616928113,0.4987,4459.9,4459.8,0.7095]
[1756616928318,0.2997,4460.4,4459.9,0.2973]
[1756616928519,3.2078,4460.5,4459.9,0.2973]
[1756616928719,3.4068,4460.5,4460.4,0.1862]
[1756616928920,3.4068,4460.5,4460.4,0.4835]
[1756616929220,3.7065,4460.5,4460.4,0.4835]
[1756616929917,3.7065,4460.5,4460.4,0.1862]
[1756616930113,0.4987,4459.8,4459.7,3.6913]
[1756616930313,0.4987,4459.8,4459.7,0.4835]
[1756616930513,0.4987,4459.8,4459.7,0.7095]
[1756616931519,0.199,4459.8,4459.7,0.7095]
[1756616931825,0.199,4460.4,4460.3,0.4835]
[1756616932012,0.199,4460.4,4460.3,0.7095]
[1756616932013,0.4987,4460.4,4460.3,0.7095]
[1756616932923,3.2078,4461.0,4460.3,0.4122]
[1756616933126,3.4348,4461.5,4460.4,0.2973]
[1756616933320,0.52387,4461.4,4460.4,0.2973]
[1756616933821,0.2997,4461.4,4460.4,0.2973]
[1756616937829,0.4987,4460.6,4460.5,0.7095]
[1756616940430,0.4987,4459.9,4459.8,0.4835]
[1756616940631,0.4987,4459.9,4459.8,0.7105]
[1756616941030,0.199,4459.9,4459.8,0.7105]
[1756616942029,0.2997,4460.8,4459.9,0.2973]
[1756616942224,0.5239,4460.8,4459.9,0.2973]
[1756616942426,3.2078,4460.9,4459.9,0.2973]
[1756616942624,0.4987,4460.8,4460.7,0.4835]
[1756616942826,0.199,4460.8,4460.7,0.4835]
[1756616943633,0.199,4460.8,4460.7,0.6623806]
[1756616944336,0.4987,4460.8,4460.7,0.4835]
[1756616947835,0.4987,4460.8,4460.7,0.2973]
[1756616948037,0.4987,4460.8,4460.7,0.7118]
[1756616951238,3.2078,4461.4,4460.7,0.4145]
[1756616951542,0.4683,4461.3,4461.2,0.4629]
[1756616952441,0.4683,4461.3,4460.7,0.227]
[1756616952640,0.4683,4461.3,4460.6,0.227]
[1756616952940,0.69248,4461.3,4460.5,0.227]
[1756616953139,0.1927,4460.6,4460.5,0.1875]
[1756616953341,0.4683,4460.6,4460.5,0.227]
[1756616953540,0.4683,4460.6,4460.5,0.6899]
[1756616960433,3.2078,4461.4,4460.5,0.6899]
[1756616960638,0.1927,4460.7,4460.6,0.4629]
[1756616960835,0.4683,4460.7,4460.6,0.4629]
[1756616961940,0.4683,4461.3,4461.2,0.1875]
[1756616962146,0.4683,4461.3,4461.2,0.4629]
[1756616963038,0.4683,4461.3,4461.1,0.2754]
[1756616963240,0.4683,4461.3,4461.0,0.2754]
[1756616963542,0.4683,4461.3,4461.2,0.4629]
[1756616971550,3.2078,4461.4,4461.3,0.4629]
[1756616971744,3.6761,4461.4,4461.3,0.4629]
[1756616971946,3.2078,4461.4,4461.3,0.4629]
[1756616972752,0.1927,4461.5,4461.4,0.4629]
[1756616972947,0.4683,4461.5,4461.4,0.4629]
[1756616975753,3.2078,4461.9,4461.8,0.1875]
[1756616976051,3.6761,4461.9,4461.8,0.4629]
[1756616984854,0.4683,4461.9,4461.8,0.4629]
[1756616986553,0.1927,4461.9,4461.8,0.4629]
[1756616987155,0.4684,4462.1,4462.0,0.1973]
[1756616987355,0.4684,4462.1,4462.0,0.4837]
[1756616987762,3.3968,4462.4,4462.3,0.1973]
[1756616987962,3.3968,4462.4,4462.3,0.4837]
[1756616988362,3.6762,4462.4,4462.3,0.4837]
[1756616991166,0.4684,4462.4,4462.3,0.4837]
[1756616998671,0.189,4462.1,4462.0,0.68976]
[1756616998876,0.4684,4462.1,4462.0,1.11306]
[1756617000074,0.189,4462.1,4462.0,1.11306]
[1756617000573,0.2794,4462.9,4462.1,0.2864]
[1756617000772,0.2794,4462.9,4462.2,0.2864]
[1756617000966,0.2794,4462.9,4462.3,0.2864]
[1756617001171,0.4684,4462.4,4462.3,0.4837]
[1756617001366,0.4684,4462.4,4462.3,0.7097]
[1756617003479,0.4684,4462.9,4462.8,0.1973]
[1756617003681,0.4684,4462.9,4462.8,0.7097]
[1756617006981,0.4684,4462.9,4462.8,0.88542357]
[1756617010388,3.3912,4463.5,4463.4,0.1878]
[1756617010589,3.3912,4463.5,4463.4,0.4807]
[1756617010888,3.6932,4463.5,4463.3,0.226]
[1756617012582,3.6932,4463.5,4463.2,0.226]
[1756617012891,3.6932,4463.5,4462.8,0.17572357]
[1756617013187,3.6932,4463.5,4462.9,0.226]
[1756617014181,3.6932,4463.5,4462.3,0.40334]
[1756617014388,0.4854,4462.3,4462.1,0.2929]
[1756617014686,0.4854,4462.3,4462.2,0.226]
[1756617014887,0.4854,4462.3,4462.2,0.7067]
[1756617017185,0.1834,4462.3,4462.1,3.2078]
[1756617017387,0.4854,4461.7,4461.6,3.5007]
[1756617017594,0.4854,4461.7,4461.6,3.90307255]
[1756617018090,0.4854,4461.7,4461.6,3.61017255]
[1756617018482,0.4854,4461.7,4461.6,4.09087255]
[1756617018692,0.4854,4461.7,4461.6,3.9145]
[1756617018982,0.4854,4461.7,4461.6,3.2078]
[1756617019188,0.4854,4461.7,4461.6,3.4338]
[1756617019485,0.4854,4461.7,4461.6,3.9145]
[1756617019691,0.1834,4461.7,4461.6,3.9145]
[1756617019991,0.4854,4461.7,4461.6,3.9145]
[1756617021987,0.4854,4461.7,4461.6,3.6885]
[1756617022191,0.4854,4461.7,4461.6,3.2078]
[1756617022386,0.4854,4461.7,4461.6,3.4338]
[1756617022891,0.4854,4461.7,4461.6,0.226]
[1756617025188,0.1834,4460.7,4460.6,6.02474134]
[1756617025390,0.302,4460.6,4460.3,0.226]
[1756617025587,0.4854,4460.4,4460.3,0.4138]
[1756617025988,0.4854,4460.4,4460.3,0.7067]
[1756617027190,0.4854,4460.4,4460.3,0.4807]
[1756617027396,0.4854,4460.4,4460.3,0.226]
[1756617027691,0.4854,4460.4,4460.0,0.14051]
[1756617027993,0.4854,4460.4,4460.1,0.5199]
[1756617028292,0.4854,4460.2,4460.1,0.227]
[1756617029688,0.4854,4460.2,4460.1,0.5199]
[1756617031385,0.4854,4460.2,4460.0,0.14051]
[1756617032891,3.3912,4460.1,4460.0,0.14051]
[1756617033190,3.6932,4460.1,4460.0,0.14051]
[1756617033989,0.1834,4459.0,4458.9,0.5199]
[1756617034188,0.4854,4459.0,4458.5,0.18280203]
[1756617034397,0.4854,4459.0,4458.7,0.2929]
[1756617034792,0.4854,4459.0,4458.2,3.2078]
[1756617034990,0.302,4458.3,4458.2,3.2078]
[1756617035192,0.4854,4458.3,4457.9,0.227]
[1756617035398,0.4854,4458.2,4458.1,0.4807]
[1756617035900,0.4854,4458.2,4458.1,0.7077]
[1756617037999,3.2078,4458.4,4458.2,0.2928]
[1756617038195,3.2078,4458.4,4458.3,0.4797]
[1756617040300,3.6863,4458.4,4458.3,0.7067]
[1756617041207,3.397,4458.4,4458.3,0.7067]
[1756617041514,3.6863,4458.4,4458.3,0.4797]
[1756617041700,3.6863,4458.4,4458.3,0.7067]
[1756617042200,3.6863,4458.4,4458.3,0.4797]
[1756617042408,3.6863,4458.4,4458.3,0.7067]
[1756617043108,3.6863,4458.4,4458.3,0.4139]
[1756617043904,3.6863,4458.4,4458.2,0.227]
[1756617044508,0.4785,4458.3,4458.2,0.5198]
[1756617044910,0.4785,4458.3,4457.7,0.2928]
[1756617045108,0.4785,4458.3,4457.9,0.2928]
[1756617045408,0.4785,4458.3,4457.8,0.227]
[1756617045803,0.2893,4458.2,4457.8,0.5198]
[1756617046010,0.1892,4457.9,4457.8,0.7067]
[1756617046208,0.4785,4457.9,4457.8,0.7067]
[1756617047010,0.1121,4458.1,4457.9,0.2928]
[1756617047309,0.1121,4458.1,4458.0,0.4797]
[1756617054817,0.1121,4458.1,4458.0,4.4797]
[1756617055720,0.1121,4458.1,4458.0,7.6875]
[1756617056415,3.4971,4459.5,4458.9,0.2928]
[1756617056609,3.2078,4460.0,4459.5,0.2928]
[1756617056808,3.6863,4460.0,4459.9,0.4797]
[1756617058017,3.2078,4460.0,4459.9,0.4797]
[1756617058817,3.397,4460.0,4459.9,0.4797]
[1756617059916,3.6863,4460.0,4459.9,0.4797]
[1756617060218,0.4785,4459.5,4459.4,0.4797]
[1756617060425,0.4785,4459.5,4459.4,0.7067]
[1756617060822,0.2893,4459.4,4459.0,0.2928]
[1756617061023,3.2078,4460.0,4458.8,3.2078]
[1756617061024,0.1892,4458.9,4458.8,3.5006]
[1756617061326,0.4785,4458.9,4458.8,3.9145]
[1756617062320,0.1892,4458.9,4458.8,3.9145]
[1756617062724,0.2893,4459.2,4459.1,0.1869]
[1756617063029,0.4785,4459.9,4459.8,0.1869]
[1756617063326,3.2078,4460.0,4459.8,0.4139]
[1756617063522,3.2078,4460.0,4459.9,0.4797]
[1756617064426,3.6863,4460.0,4459.9,0.4797]
[1756617065731,3.6863,4460.0,4459.9,0.1869]
[1756617065931,0.4785,4460.0,4459.9,0.1869]
[1756617066928,0.4785,4460.0,4459.9,0.4797]
[1756617073426,3.6829,4460.5,4460.4,0.1956]
[1756617073631,3.2078,4460.5,4460.4,0.7121]
[1756617074334,3.3952,4460.5,4460.4,0.7121]
[1756617074537,3.6829,4460.5,4460.4,0.7121]
[1756617076540,3.6829,4460.5,4460.4,0.89533335]
[1756617076740,3.3952,4460.5,4460.4,0.89533335]
[1756617077135,3.4955,4461.1,4460.5,0.2895]
[1756617077439,3.6829,4461.1,4461.0,0.4851]
[1756617077639,3.6829,4461.1,4461.0,0.7121]
[1756617077841,3.6829,4461.1,4461.0,0.227]
[1756617081034,0.2877,4461.0,4460.8,0.227]
[1756617081235,0.1874,4460.9,4460.8,0.227]
[1756617081432,0.4751,4460.9,4460.8,0.227]
[1756617081836,3.2078,4461.1,4460.7,0.227]
[1756617082036,0.4751,4460.8,4460.7,0.227]
[1756617082437,0.4751,4460.8,4460.7,0.5165]
[1756617083038,0.4751,4460.8,4460.7,0.227]
[1756617083540,0.4751,4460.8,4460.4,0.2895]
[1756617083841,0.4751,4460.8,4460.7,0.227]
[1756617084842,0.4751,4460.8,4460.7,0.7121]
[1756617088944,0.4751,4460.8,4460.7,0.227]
[1756617089340,0.4751,4460.8,4460.7,0.7121]
[1756617090544,3.2078,4461.1,4460.7,0.7121]
[1756617090742,3.4955,4461.1,4460.8,0.2895]
[1756617090940,3.6829,4461.1,4461.0,0.4851]
[1756617092140,0.4751,4461.1,4461.0,0.4851]
[1756617092346,0.1874,4461.1,4461.0,0.4851]
[1756617094140,0.2877,4461.4,4461.3,0.1956]
[1756617094343,3.4955,4461.6,4461.4,0.2895]
[1756617094536,3.3952,4461.6,4461.5,0.1956]
[1756617094941,3.3952,4461.6,4461.5,0.4851]
[1756617095240,3.6829,4461.6,4461.5,0.4851]
[1756617097544,0.4751,4461.6,4461.5,0.4851]
[1756617100248,0.1951,4462.0,4461.9,0.1956]
[1756617100546,0.4806,4462.0,4461.9,0.7106]
[1756617106053,0.2855,4462.0,4461.3,3.2078]
[1756617106254,0.1951,4462.0,4461.3,3.2078]
[1756617106454,0.4806,4461.4,4461.3,3.2078]
[1756617106655,0.4806,4461.4,4461.3,3.9174]
[1756617120255,0.4806,4461.4,4460.8,3.2078]
[1756617120453,0.226,4462.8,4460.7,3.30054134]
[1756617120454,0.4806,4460.8,4460.7,3.30054134]
[1756617120653,0.4806,4460.8,4460.7,3.52654134]
[1756617120859,0.4806,4460.8,4460.7,0.7096]
[1756617124358,0.4806,4460.8,4460.7,0.1956]
[1756617124553,4.4806,4460.8,4460.7,0.226]
[1756617128256,4.1951,4460.8,4460.4,0.226]
[1756617128452,0.4833,4460.5,4460.4,0.226]
[1756617129758,0.4833,4460.5,4460.1,0.288]
[1756617130065,0.4833,4460.5,4460.2,0.226]
[1756617130361,0.4833,4460.5,4460.2,0.5002]
[1756617130562,0.2032,4460.3,4460.2,0.5002]
[1756617130765,0.4833,4460.3,4460.2,0.5002]
[1756617131260,0.2032,4460.0,4459.9,0.2742]
[1756617131461,0.4833,4460.0,4459.9,0.5002]
[1756617133865,0.4833,4460.0,4459.9,0.226]
[1756617134069,0.2032,4460.0,4459.5,0.2742]
[1756617134266,0.2032,4459.7,4459.6,0.226]
[1756617134667,0.4833,4459.7,4459.6,0.226]
[1756617135068,0.4833,4459.7,4459.3,3.2078]
[1756617135269,3.2078,4460.1,4459.4,0.226]
[1756617135467,0.2032,4459.5,4459.4,0.226]
[1756617135668,0.4833,4459.5,4459.4,0.226]
[1756617136671,0.4833,4459.5,4459.4,0.5002]
[1756617137067,0.4833,4459.5,4459.4,0.6899]
[1756617137273,3.2078,4460.1,4460.0,0.1897]
[1756617137274,3.6911,4460.1,4460.0,0.1897]
[1756617137474,3.6911,4460.1,4460.0,0.4639]
[1756617137968,3.6911,4460.1,4459.6,0.226]
[1756617138271,0.2032,4459.8,4459.7,0.4639]
[1756617139063,0.2801,4460.0,4459.7,0.1897]
[1756617139266,0.4833,4460.0,4459.9,0.1897]
[1756617139466,0.4833,4460.0,4459.9,0.6899]
[1756617139970,0.4833,4460.0,4459.9,0.226]
[1756617140869,0.4833,4460.0,4459.3,3.2078]
[1756617141073,0.4833,4459.5,4459.4,0.5002]
[1756617141272,0.4833,4459.5,4459.4,0.6899]
[1756617141662,0.2032,4459.5,4459.4,0.6899]
[1756617141869,0.2801,4460.0,4459.5,0.2742]
[1756617142175,0.4833,4460.0,4459.9,0.4639]
[1756617142576,0.2032,4459.8,4459.7,0.226]
[1756617142778,0.4833,4459.8,4459.7,0.5002]
[1756617143277,0.4833,4459.8,4459.7,0.6899]
[1756617143575,0.4833,4459.8,4459.7,0.4639]
[1756617143778,0.4833,4459.8,4459.7,0.6899]
[1756617144570,0.4833,4459.8,4459.3,3.2078]
[1756617144775,0.2032,4459.5,4459.3,3.4338]
[1756617144972,0.4833,4459.4,4459.3,3.8977]
[1756617146073,0.2801,4459.4,4459.3,3.8977]
[1756617146378,0.2801,4460.0,4459.4,0.2742]
[1756617146583,0.4833,4459.5,4459.4,0.4639]
[1756617146974,0.4833,4459.5,4459.4,0.6909]
[1756617150477,0.4833,4459.5,4459.4,0.4639]
[1756617150672,0.4833,4459.5,4459.4,0.6899]
[1756617152380,0.2801,4459.4,4458.5,3.2078]
[1756617152578,0.4833,4459.4,4458.7,0.2742]
[1756617152873,0.4833,4459.4,4458.9,0.2742]
[1756617153275,0.4833,4459.4,4459.0,0.226]
[1756617153480,0.4833,4459.4,4459.3,0.1897]
[1756617153781,0.4833,4459.4,4459.3,0.4639]
[1756617161588,0.2922,4459.7,4459.3,0.4639]
[1756617161785,0.2922,4459.7,4459.1,0.226]
[1756617161786,0.1962,4459.7,4459.6,0.472]
[1756617161986,0.4884,4459.7,4459.6,0.472]
[1756617170497,0.1962,4459.7,4458.9,0.226]
[1756617170695,0.4884,4459.1,4459.0,0.472]
[1756617171592,3.2078,4459.6,4459.0,0.472]
[1756617171795,3.404,4459.6,4459.5,0.1879]
[1756617172090,3.404,4459.6,4459.5,0.472]
[1756617172294,3.6962,4459.6,4458.5,6.20533595]
[1756617172491,0.4884,4458.6,4458.5,0.2841]
[1756617172692,0.4884,4458.6,4458.5,0.472]
[1756617173299,0.69227098,4458.6,4458.5,0.472]
[1756617173595,0.20387098,4458.6,4458.5,0.472]
[1756617174202,0.69227098,4458.6,4458.5,0.472]
[1756617176097,0.69227098,4458.6,4457.7,0.472]
[1756617176098,0.4884,4457.8,4457.7,0.472]
[1756617176299,3.90007098,4457.8,4457.4,0.2841]
[1756617176602,0.4884,4457.5,4457.4,0.472]
[1756617176801,0.69227098,4457.5,4457.4,0.472]
[1756617177695,0.4884,4456.9,4456.8,0.472]
[1756617177894,0.69227098,4456.9,4456.5,0.2841]
[1756617178093,0.1962,4456.6,4456.5,0.472]
[1756617178701,0.4884,4456.6,4456.5,0.472]
[1756617178900,0.69177769,4456.6,4456.5,0.472]
[1756617179393,0.4884,4456.6,4456.5,0.472]
[1756617180901,0.1962,4456.6,4456.5,0.472]
[1756617181903,0.4884,4456.6,4456.5,0.472]
[1756617183402,0.1962,4456.6,4456.5,0.472]
[1756617183595,0.2922,4456.7,4456.6,0.2841]
[1756617183800,0.4884,4456.7,4456.6,0.472]
[1756617189307,0.4884,4456.7,4456.6,0.1879]
[1756617189604,0.4884,4456.7,4456.3,0.2777]
[1756617189803,0.2011,4456.0,4455.9,0.2777]
[1756617190006,0.2011,4455.5,4455.4,0.4165]
[1756617190201,3.2078,4456.0,4455.4,0.4165]
[1756617190202,3.2078,4456.0,4455.5,0.2777]
[1756617190507,3.7032,4456.0,4455.9,0.4682]
[1756617196105,3.7032,4456.0,4455.9,4.69262]
[1756617196106,3.2078,4456.0,4455.9,4.69262]
[1756617196410,3.7032,4456.7,4456.6,0.4682]
[1756617197208,3.2078,4456.7,4456.6,0.4682]
[1756617198604,3.7032,4456.7,4456.6,0.4682]
[1756617198804,3.2078,4456.7,4456.6,0.4682]
[1756617199805,0.1121,4456.9,4456.8,0.1905]
[1756617200004,0.1121,4456.9,4456.8,0.6952]
[1756617200605,0.1121,4456.9,4456.8,4.91957]
[1756617201312,3.2078,4457.7,4456.9,0.2777]
[1756617201512,3.2078,4457.7,4457.6,0.4682]
[1756617201711,3.40955091,4457.7,4457.6,0.6952]
[1756617201914,0.69715091,4457.7,4457.6,0.6952]
[1756617202212,0.69715698,4457.7,4457.6,0.6952]
[1756617203008,0.40285698,4457.7,4457.6,0.227]
[1756617203211,0.69715698,4457.7,4457.6,0.227]
[1756617203409,3.90495698,4457.7,4457.6,0.227]
[1756617204206,7.90495698,4457.7,4456.7,0.2777]
[1756617204408,0.4954,4456.8,4456.7,0.227]
[1756617204607,0.69753167,4456.8,4456.7,0.227]
[1756617205713,0.2943,4456.7,4456.5,0.227]
[1756617205914,0.69753167,4456.6,4456.5,0.6952]
[1756617206317,0.69753167,4456.6,4456.5,0.227]
[1756617206707,0.69753167,4456.6,4456.3,0.227]
[1756617206903,3.7032,4456.4,4456.3,0.227]
[1756617207116,3.90533167,4456.4,4456.3,0.227]
[1756617207412,3.90533167,4456.4,4455.8,0.2777]
[1756617207718,0.4954,4456.1,4456.0,0.6952]
[1756617208013,0.69753167,4456.1,4456.0,0.6952]
[1756617209411,0.4954,4456.1,4456.0,0.6952]
[1756617209618,0.69775888,4456.1,4456.0,0.227]
[1756617210512,0.69775888,4456.1,4455.6,0.2777]
[1756617210705,3.4089,4455.8,4455.7,0.227]
[1756617210910,3.61125888,4455.8,4455.7,0.227]
[1756617211110,3.61125888,4455.8,4455.7,0.6952]
[1756617211313,3.90555888,4455.8,4455.7,0.6952]
[1756617213116,3.90550436,4455.8,4455.7,0.6952]
[1756617213920,3.90550436,4455.8,4455.7,0.227]
[1756617214622,3.90550436,4455.8,4455.7,0.6952]
[1756617216520,3.90556709,4455.8,4455.7,0.6952]
[1756617217121,3.90556709,4455.8,4455.7,0.4175]
[1756617219323,3.90556709,4455.8,4455.7,0.7001]
[1756617220126,3.90241023,4455.8,4455.7,0.7001]
[1756617220322,3.90240917,4455.8,4455.7,0.7001]
[1756617225828,3.90240917,4455.8,4455.7,0.4784]
[1756617226231,3.90240917,4455.8,4455.6,0.227]
[1756617226522,0.67410917,4455.7,4455.6,0.227]
[1756617226929,0.67410917,4455.7,4455.3,0.32166081]
[1756617227124,0.19919768,4455.6,4454.9,0.2826]
[1756617227329,0.4749,4455.0,4454.9,0.65506144]
[1756617227526,0.4749,4455.0,4454.9,0.88206144]
[1756617228025,0.2788,4455.0,4454.9,0.88206144]
[1756617228226,0.4749,4455.0,4454.9,0.88206144]
[1756617229429,0.2788,4455.7,4455.0,0.2826]
[1756617229633,0.4749,4455.7,4455.6,0.4784]
[1756617229827,0.67406912,4455.7,4455.6,0.7054]
[1756617230837,0.67408338,4455.7,4455.6,0.7054]
[1756617236337,0.19918338,4455.7,4455.6,0.7054]
[1756617236538,0.2788,4456.0,4455.7,0.2826]
[1756617236739,0.4749,4455.8,4455.7,0.4784]
[1756617236940,0.66392262,4455.8,4455.7,0.7054]
[1756617238044,0.66393537,4455.8,4455.7,0.7054]
[1756617239150,0.1122,4456.1,4455.8,0.2826]
[1756617239349,0.18905433,4456.0,4455.9,0.1958]
[1756617239544,0.18905433,4456.0,4455.9,0.4784]
[1756617240438,0.46785433,4456.0,4455.9,0.4784]
[1756617240636,0.18905433,4456.0,4455.9,0.4784]
[1756617241045,3.2078,4457.0,4456.1,0.2826]
[1756617241248,0.38515219,4456.9,4456.8,0.1958]
[1756617241447,0.38515219,4456.9,4456.8,0.227]
[1756617243151,0.66395219,4456.9,4456.8,0.227]
[1756617243741,0.66395219,4456.9,4456.8,0.7054]
[1756617244949,0.18905219,4456.9,4456.8,0.7054]
[1756617245356,3.2078,4457.0,4456.9,0.2826]
[1756617245953,3.2078,4457.0,4456.9,0.4784]
[1756617246149,3.4039,4457.0,4456.9,0.4784]
[1756617247056,3.6827,4457.0,4456.9,0.4784]
[1756617247757,3.87135029,4457.0,4456.9,0.4784]
[1756617248054,3.6827,4457.0,4456.9,0.4784]
[1756617249557,0.4749,4457.0,4456.9,0.4784]
[1756617252754,0.2982,4457.5,4457.0,0.301]
[1756617252957,0.2982,4457.5,4456.8,0.227]
[1756617252958,0.4849,4457.5,4457.4,0.1852]
[1756617253158,0.67198728,4457.5,4457.4,0.227]
[1756617253555,0.67198728,4457.5,4456.5,0.301]
[1756617253762,0.4849,4456.3,4456.2,32.316]
[1756617253962,0.4849,4456.3,4456.2,32.543]
[1756617254259,0.4849,4456.3,4456.2,32.316]
[1756617254560,0.4849,4456.3,4456.2,0.227]
[1756617255061,0.67196258,4456.3,4456.2,0.227]
[1756617255359,0.4849,4456.3,4456.2,0.227]
[1756617255956,0.4849,4456.3,4456.2,0.7132]
[1756617256151,3.2078,4457.3,4456.3,0.301]
[1756617256358,3.2078,4457.3,4456.2,0.4122]
[1756617256359,0.67199814,4457.2,4457.1,0.1852]
[1756617256856,0.67199814,4457.2,4457.0,0.227]
[1756617257052,0.67199814,4457.1,4457.0,0.227]
[1756617258562,0.1867,4456.9,4456.8,0.227]
[1756617258762,0.4849,4456.9,4456.8,0.227]
[1756617258962,0.67199814,4456.9,4456.8,0.227]
[1756617259261,0.67199814,4456.9,4456.8,0.7132]
[1756617259664,0.67199814,4456.9,4456.8,0.227]
[1756617260158,0.67199814,4456.9,4456.8,0.7132]
[1756617261566,0.67199814,4456.9,4456.7,0.227]
[1756617261767,0.67199814,4456.8,4456.7,0.227]
[1756617261960,0.67213225,4456.8,4456.7,0.227]
[1756617267670,0.67213225,4456.8,4456.7,0.4122]
[1756617268070,0.67213225,4456.8,4456.7,0.7132]
[1756617268465,0.18723225,4456.8,4456.7,0.7132]
[1756617269170,0.67213225,4456.8,4456.7,0.4862]
[1756617269368,0.37393225,4456.8,4456.7,0.227]
[1756617270074,0.67213225,4456.8,4456.7,0.7132]
[1756617270674,0.37393225,4456.8,4456.7,0.7132]
[1756617270871,0.67213225,4456.8,4456.7,0.7132]
[1756617272674,0.4849,4456.8,4456.7,0.7132]
[1756617272869,0.67258807,4456.8,4456.7,0.7132]
[1756617273074,3.2078,4457.3,4456.7,0.7132]
[1756617273275,0.48588918,4457.2,4456.8,0.301]
[1756617273468,0.4849,4457.2,4457.1,0.4862]
[1756617273669,0.67258092,4457.2,4457.1,0.4862]
[1756617273974,0.18768092,4457.2,4457.1,0.4862]
[1756617274565,3.3945,4458.3,4458.2,0.1852]
[1756617274766,3.88039888,4458.3,4458.2,0.4862]
[1756617275172,0.67259888,4458.3,4458.2,0.4862]
[1756617276077,0.67259888,4458.3,4458.2,0.66621655]
[1756617276971,0.67259888,4458.3,4458.2,0.4862]
[1756617279685,0.67259888,4458.3,4457.1,0.28]
[1756617279686,0.3039,4458.2,4457.1,0.28]
[1756617279978,0.49,4456.9,4456.8,0.185]
[1756617280375,0.49,4456.9,4456.8,0.36322738]
[1756617280574,0.49,4456.9,4456.8,0.64322738]
[1756617280774,0.49,4456.9,4456.8,0.465]
[1756617281280,0.49,4456.9,4456.8,0.64546552]
[1756617283684,0.3039,4457.3,4456.9,0.28]
[1756617283984,0.49,4457.2,4457.1,0.465]
[1756617284185,0.67944901,4457.2,4457.1,0.465]
[1756617286085,0.49,4457.2,4457.1,0.465]
[1756617286287,0.67950168,4457.2,4457.1,0.465]
[1756617286687,0.49,4457.2,4457.1,0.465]
[1756617287985,0.49,4457.2,4457.1,0.692]
[1756617288187,0.1861,4457.2,4457.1,0.692]
[1756617288486,0.3039,4457.5,4457.4,0.185]
[1756617288683,0.4934159,4457.5,4457.4,0.465]
[1756617289186,0.6795159,4457.5,4457.4,0.465]
[1756617290582,0.3756159,4457.5,4457.4,0.465]
[1756617291990,0.6795159,4457.5,4457.4,0.465]
[1756617294392,0.67958932,4457.5,4457.4,0.465]
[1756617295195,0.67965928,4457.5,4457.4,0.465]
[1756617295493,0.49355928,4457.5,4457.4,0.465]
[1756617296495,0.18965928,4457.5,4457.4,0.465]
[1756617297899,0.3039,4457.8,4457.4,0.465]
[1756617297900,0.18976839,4457.7,4457.4,0.465]
[1756617298198,0.67976839,4457.6,4457.5,0.465]
[1756617300400,0.67976839,4457.6,4457.2,0.28]
[1756617300601,0.49,4457.3,4457.2,0.465]
[1756617300797,0.67976839,4457.3,4457.2,0.465]
[1756617303806,0.67979226,4457.3,4457.2,0.465]
[1756617306210,0.37589226,4457.3,4457.2,0.465]
[1756617306511,0.18979226,4457.3,4457.2,0.465]
[1756617306708,0.67979226,4457.3,4457.2,0.465]
[1756617308607,0.67729226,4457.3,4457.2,0.227]
[1756617308810,4.67729226,4457.3,4457.2,0.227]
[1756617309708,0.3014,4457.2,4456.6,32.308]
[1756617310014,0.1884,4456.4,4456.3,3.2078]
[1756617310213,0.67959226,4456.4,4456.3,0.227]
[1756617311112,0.67850109,4456.4,4456.3,0.227]
[1756617312306,0.67850109,4456.4,4455.6,0.46899045]
[1756617312513,3.2078,4456.5,4455.6,0.65479045]
[1756617312514,0.4898,4455.7,4455.6,0.65479045]
[1756617312707,0.4898,4455.7,4455.6,0.88179045]
[1756617315813,0.4898,4455.7,4455.6,0.7026]
[1756617316715,0.4898,4455.7,4455.6,0.4128]
[1756617316913,0.4898,4455.7,4455.6,0.227]
[1756617317710,0.3014,4455.6,4455.5,3.2078]
[1756617317911,0.4898,4455.2,4455.1,32.5978]
[1756617318118,0.4898,4455.2,4455.1,33.00347449]
[1756617323922,0.4898,4455.2,4455.1,32.8248]
[1756617326420,3.2078,4456.0,4455.5,0.1858]
[1756617326421,0.4898,4455.6,4455.5,0.1858]
[1756617326631,0.4898,4455.6,4455.5,0.7026]
[1756617331526,3.2078,4456.0,4455.5,0.7026]
[1756617331722,0.6780177,4455.9,4455.8,0.4756]
[1756617331927,0.6780177,4455.9,4455.8,0.7026]
[1756617332624,0.6780889,4455.9,4455.8,0.7026]
[1756617333430,0.6780889,4455.9,4455.8,0.227]
[1756617334529,0.6780889,4455.9,4455.1,32.308]
[1756617334723,0.1884,4455.3,4455.2,0.4128]
[1756617334928,0.4898,4455.3,4455.2,0.7026]
[1756617338226,0.67874759,4455.3,4455.2,0.7026]
[1756617342938,0.67874759,4455.3,4455.2,0.4756]
[1756617343137,0.67874759,4455.3,4455.2,0.7026]
[1756617346837,0.4898,4455.3,4455.2,0.7026]
[1756617347037,0.68167074,4455.3,4455.2,0.7026]
[1756617348637,0.68167074,4455.3,4455.2,0.4756]
[1756617348941,0.68167074,4455.3,4455.2,0.7026]
[1756617357657,0.4898,4455.3,4455.2,0.7026]
[1756617357858,0.681632,4455.3,4455.2,0.7026]